bitfinex/quotes_ETHUSD_20241212
["timestamp","ask_amount","ask_price","bid_price","bid_amount"]
[1734015443685,1e-05,3981.0,3980.4,3.0]
[1734015443885,1e-05,3981.0,3980.6,2.26091]
[1734015444484,1e-05,3981.0,3979.0,3.60717581]
[1734015444750,1e-05,3981.0,3979.4,2.26163]
[1734015444751,0.2157,3980.9,3979.4,2.26163]
[1734015444905,0.2157,3980.9,3978.9,3.09186498]
[1734015444906,0.2157,3980.5,3978.9,3.09186498]
[1734015445089,0.2157,3980.2,3979.0,2.01054]
[1734015445311,0.2157,3980.2,3978.9,2.01059]
[1734015445650,0.2157,3980.2,3979.0,2.01054]
[1734015446004,2.5125,3980.1,3978.7,2.01067]
[1734015446205,0.2157,3979.9,3978.5,2.0108]
[1734015446402,2.51293,3979.5,3977.7,2.01117]
[1734015446607,0.2157,3979.4,3978.2,2.01091]
[1734015446827,0.2157,3979.4,3977.6,2.10320099]
[1734015447045,0.2157,3979.4,3978.7,2.01069]
[1734015447232,0.2157,3979.4,3977.5,3.21096098]
[1734015447432,0.55,3979.1,3977.5,2.01128]
[1734015447758,0.2157,3978.5,3977.2,2.01144]
[1734015448211,0.2157,3978.5,3977.1,2.01151]
[1734015448563,0.2157,3978.5,3977.0,0.97783073]
[1734015448564,0.2157,3978.5,3977.7,2.01121]
[1734015448725,0.2157,3978.5,3977.3,2.01136]
[1734015448726,0.2157,3978.5,3977.8,2.01116]
[1734015448926,0.2157,3978.5,3977.5,2.01126]
[1734015449141,0.2157,3978.5,3977.0,0.97783073]
[1734015449142,0.2157,3978.5,3977.2,2.01146]
[1734015449352,0.55,3978.4,3977.2,2.01144]
[1734015449660,0.21267733,3978.3,3977.2,2.01144]
[1734015449857,0.21267733,3978.3,3977.3,2.01139]
[1734015450072,0.21267733,3978.3,3976.6,2.01176]
[1734015450287,0.21267733,3978.3,3977.6,2.01124]
[1734015450433,0.21267733,3978.3,3976.8,3.0]
[1734015450778,0.21267733,3978.3,3978.2,2.01095]
[1734015450927,0.51058873,3980.1,3977.8,3.0]
[1734015451123,0.51058873,3980.1,3977.6,1.4856]
[1734015451124,0.51058873,3980.1,3978.0,3.0]
[1734015451325,1.55,3980.2,3978.4,2.0]
[1734015451667,1.55,3980.2,3978.8,3.0]
[1734015451851,1.55,3980.2,3978.9,0.28342645]
[1734015452036,1.55,3980.2,3978.8,3.0]
[1734015452037,2.51252,3980.1,3978.8,3.0]
[1734015452364,1.55,3980.2,3977.6,3.0]
[1734015452532,2.51256,3980.0,3978.6,2.01074]
[1734015452865,1.55,3980.2,3978.8,2.01065]
[1734015452866,0.2126,3979.9,3978.8,2.01065]
[1734015453165,0.2126,3979.9,3978.8,1.99798334]
[1734015453338,0.2126,3979.9,3978.9,2.01058]
[1734015453539,0.2126,3979.9,3978.8,0.19979833]
[1734015453731,0.2126,3979.9,3978.9,2.01059]
[1734015453930,0.2126,3979.9,3979.0,2.01055]
[1734015454551,0.2126,3979.9,3978.8,0.19979833]
[1734015454752,0.2126,3979.9,3978.3,2.0109]
[1734015454941,0.2126,3979.9,3979.0,2.01054]
[1734015455145,0.2126,3979.9,3978.2,3.0]
[1734015455462,0.2126,3979.9,3978.1,3.21096098]
[1734015455463,0.2126,3979.9,3978.1,2.01099]
[1734015455629,2.72523,3979.9,3978.6,2.01073]
[1734015455829,3.307753,3979.9,3978.6,2.01073]
[1734015456265,3.307753,3979.9,3978.2,3.0]
[1734015456466,2.72523,3979.9,3978.7,2.0107]
[1734015456670,2.72523,3979.9,3978.9,2.01058]
[1734015456671,0.2126,3979.9,3978.9,2.01058]
[1734015457188,0.2126,3979.9,3978.7,2.0107]
[1734015457555,2.51269,3979.8,3978.4,2.01085]
[1734015457898,0.2126,3979.7,3978.7,2.01068]
[1734015458099,0.2126,3979.7,3978.8,0.201068]
[1734015458257,0.2126,3979.7,3979.1,2.01048]
[1734015458436,0.2126,3979.7,3978.8,0.201068]
[1734015458437,0.2126,3979.7,3978.9,2.0106]
[1734015458778,0.2126,3979.7,3978.8,0.201068]
[1734015459188,0.2126,3979.7,3979.0,2.01053]
[1734015459484,0.2126,3979.7,3978.8,0.201068]
[1734015459849,0.2126,3979.7,3978.3,3.0]
[1734015460035,0.2126,3979.7,3978.5,3.0]
[1734015460234,0.2126,3979.7,3978.5,2.01076]
[1734015460492,0.2126,3979.7,3978.3,3.0]
[1734015460724,0.2126,3979.7,3978.4,2.01085]
[1734015460933,0.2126,3979.7,3978.3,3.0]
[1734015461094,0.2126,3979.7,3978.4,2.01085]
[1734015461295,0.2126,3979.7,3978.7,2.01065]
[1734015461502,0.2126,3979.7,3978.3,3.0]
[1734015461743,0.2126,3979.7,3978.5,2.01079]
[1734015461940,0.2126,3979.7,3978.3,5.0109]
[1734015461941,2.72537,3979.7,3978.3,5.0109]
[1734015462152,2.72537,3979.7,3978.3,3.0]
[1734015462153,0.2126,3979.7,3978.3,3.0]
[1734015462346,0.2126,3979.7,3978.5,2.01078]
[1734015462512,1.7626,3979.7,3977.9,3.0]
[1734015462714,2.51321,3979.0,3977.2,2.90742916]
[1734015462916,0.55,3979.6,3977.2,2.90742916]
[1734015462917,0.2126,3978.8,3977.2,2.90742916]
[1734015463336,0.2126,3978.6,3977.1,2.01146]
[1734015463544,0.2126,3978.6,3976.8,2.01164]
[1734015463545,0.2126,3978.6,3977.3,2.01139]
[1734015463827,0.2126,3978.6,3977.3,2.01138]
[1734015464027,0.2126,3978.6,3976.8,0.50925216]
[1734015464436,0.2126,3978.6,3977.5,2.51408]
[1734015464625,0.2126,3978.6,3977.2,5.90742916]
[1734015464840,0.2126,3978.6,3977.8,2.51392]
[1734015465041,0.2126,3978.6,3977.6,3.0]
[1734015465225,0.2126,3978.6,3977.4,3.0]
[1734015465431,0.2126,3978.6,3977.7,2.51395]
[1734015465814,0.2126,3978.6,3977.9,2.51386]
[1734015466023,0.2126,3978.6,3977.6,2.51404]
[1734015466513,0.2126,3978.6,3977.3,5.51425]
[1734015466728,0.2126,3978.6,3977.8,2.51394]
[1734015467144,0.25,3978.0,3977.1,2.90742916]
[1734015467329,0.25,3978.0,3977.1,5.42178916]
[1734015467870,0.25,3977.7,3977.6,2.51407]
[1734015468360,0.25,3977.5,3976.7,3.0]
[1734015468546,0.25,3977.5,3977.4,2.5142]
[1734015468758,1.4986,3977.7,3977.6,2.51407]
[1734015468920,1.4986,3977.7,3976.9,2.5145]
[1734015469120,0.25,3977.5,3977.4,2.51417]
[1734015469358,0.25,3977.5,3977.2,2.51429]
[1734015469544,0.25,3977.5,3977.2,2.51432]
[1734015470260,0.25,3977.5,3976.6,8.42209916]
[1734015470261,0.25,3977.4,3977.0,2.51444]
[1734015470461,0.25,3977.0,3976.7,5.51458]
[1734015470826,0.25,3976.4,3976.2,3.02630149]
[1734015471037,0.25,3976.4,3975.6,1.5419]
[1734015471345,0.25,3976.4,3976.2,2.51493]
[1734015471726,0.25,3976.4,3976.3,2.5149]
[1734015472068,0.25,3976.8,3976.6,2.51471]
[1734015472357,1.7857,3976.9,3976.8,2.51458]
[1734015472527,1.7857,3976.9,3976.3,2.5149]
[1734015472871,0.25,3976.8,3976.0,2.90742916]
[1734015473163,1.55,3976.4,3976.3,2.5149]
[1734015474677,1.847,3977.4,3977.3,2.51426]
[1734015474823,0.5,3977.8,3977.7,2.51401]
[1734015475282,0.5,3977.8,3976.9,3.0]
[1734015475512,0.25,3977.2,3977.1,2.51439]
[1734015475780,0.25,3977.4,3977.3,2.51426]
[1734015475979,0.5,3977.8,3977.6,2.51406]
[1734015476481,2.05,3977.8,3977.6,2.51406]
[1734015476708,1.8,3977.8,3977.7,2.51401]
[1734015477471,1.55,3977.8,3977.7,2.51401]
[1734015477841,1.8,3977.8,3977.7,2.51401]
[1734015479324,0.25,3977.6,3977.4,2.51415]
[1734015479532,0.25,3977.0,3976.9,2.51452]
[1734015479691,0.25,3977.0,3975.6,2.51529]
[1734015479692,0.25,3976.8,3976.1,2.515]
[1734015479899,0.5,3976.8,3976.6,2.51469]
[1734015480099,0.25,3976.6,3975.8,2.90742916]
[1734015480277,0.25,3976.6,3976.5,2.51477]
[1734015480489,0.5,3976.8,3976.5,2.51477]
[1734015480822,0.5,3976.8,3976.7,2.51464]
[1734015481732,1.55,3977.0,3976.9,2.51452]
[1734015482284,1.55,3977.0,3976.9,5.51452]
[1734015483307,3.1,3977.0,3976.9,5.51452]
[1734015483505,3.1,3977.0,3976.7,2.51464]
[1734015483506,0.25,3976.8,3976.7,2.51464]
[1734015483701,0.5,3976.8,3976.7,2.51464]
[1734015485045,0.25,3976.6,3976.5,2.51475]
[1734015485362,0.25,3976.3,3976.1,2.51502]
[1734015485848,0.25,3976.3,3975.6,2.51528]
[1734015485849,0.5,3976.3,3975.9,2.51513]
[1734015486008,0.25,3976.0,3975.9,2.51513]
[1734015486648,1.8,3976.0,3975.9,2.51513]
[1734015486829,1.55,3976.0,3975.9,2.51513]
[1734015487307,1.55,3976.0,3975.9,3.0674598]
[1734015487541,1.55,3976.0,3975.9,5.51513]
[1734015487542,0.29245,3976.0,3975.9,5.51513]
[1734015487841,1e-05,3976.0,3975.9,5.51513]
[1734015488047,1e-05,3976.0,3975.9,13.027253]
[1734015488348,1e-05,3976.0,3975.9,10.568253]
[1734015488709,1e-05,3976.0,3975.9,8.204626]
[1734015490038,1.55001,3976.0,3975.9,8.204626]
[1734015491096,1.55001,3976.0,3975.9,5.51513]
[1734015491302,0.25,3975.8,3975.3,2.90742916]
[1734015491438,0.25,3975.8,3974.2,0.23555931]
[1734015491439,0.25,3975.5,3974.5,1.5029]
[1734015491777,0.5,3975.1,3975.0,2.51568]
[1734015491948,2.0994,3975.1,3974.7,2.51588]
[1734015492137,0.5,3974.9,3974.8,2.51583]
[1734015492340,0.25,3974.8,3974.4,2.5161]
[1734015492639,0.25,3974.8,3974.4,3.01332937]
[1734015492838,0.25,3974.8,3974.7,2.51591]
[1734015493066,0.5,3974.9,3974.8,2.51584]
[1734015493539,0.25,3974.9,3974.8,2.51584]
[1734015493744,0.5,3975.1,3975.0,2.51572]
[1734015494606,1.5625,3975.5,3974.6,3.0]
[1734015494607,0.25,3974.8,3974.6,3.0]
[1734015494894,0.25,3974.8,3974.7,2.51587]
[1734015495912,0.25,3974.9,3974.8,2.51584]
[1734015496115,0.5,3975.5,3975.4,2.51547]
[1734015496417,0.5,3975.2,3975.1,2.51559]
[1734015496981,0.25,3974.9,3974.8,2.51584]
[1734015497578,0.5,3974.9,3974.8,2.51584]
[1734015497985,1.982,3974.9,3974.8,2.51584]
[1734015498189,0.25,3974.7,3974.6,2.51597]
[1734015498914,0.25,3974.5,3974.4,2.51609]
[1734015499215,0.25,3973.8,3973.7,2.90742916]
[1734015499363,0.5,3974.0,3973.9,2.51641]
[1734015499559,1.482,3974.9,3974.5,2.51603]
[1734015499560,0.25,3974.6,3974.5,2.51603]
[1734015499791,0.25,3974.7,3974.6,2.51597]
[1734015500700,0.25,3974.4,3974.3,2.90742916]
[1734015500901,0.25,3974.1,3974.0,2.51631]
[1734015501064,0.5,3974.1,3974.0,2.51631]
[1734015501462,0.25,3974.3,3974.2,2.51622]
[1734015501900,0.25,3974.3,3974.0,2.51631]
[1734015501901,0.25,3974.7,3974.4,2.5161]
[1734015502064,0.25,3974.7,3974.6,2.51597]
[1734015502899,0.25,3974.8,3974.7,2.51591]
[1734015503271,1.55,3974.8,3974.7,2.51591]
[1734015503615,1.8,3975.5,3975.1,2.51565]
[1734015503773,1.55,3975.5,3975.3,2.90742916]
[1734015504104,0.25,3975.4,3975.3,5.42295916]
[1734015504669,0.25,3975.4,3975.3,2.51553]
[1734015505608,0.25,3975.0,3974.9,2.2642]
[1734015506488,0.25,3975.3,3975.2,2.26403]
[1734015506670,0.25,3975.4,3975.3,2.26398]
[1734015507292,1.55,3975.5,3975.4,2.26392]
[1734015508122,1.55,3975.5,3975.4,6.85512]
[1734015508992,1.55001,3976.0,3975.9,2.26363]
[1734015509196,1.55001,3976.0,3975.9,8.17105916]
[1734015509899,3.35001,3976.0,3975.9,5.17105916]
[1734015510436,3.60001,3976.0,3975.9,2.90742916]
[1734015510587,3.60001,3976.0,3975.9,5.17105916]
[1734015510588,3.35001,3976.0,3975.9,5.17105916]
[1734015510790,3.10001,3976.0,3975.9,8.17105916]
[1734015510985,3.10001,3976.0,3975.9,9.74985916]
[1734015512432,3.10001,3976.0,3975.9,8.17105916]
[1734015512731,3.10001,3976.0,3975.9,5.17105916]
[1734015513080,4.65001,3976.0,3975.9,5.17105916]
[1734015514222,4.65001,3976.0,3975.9,8.17105916]
[1734015514444,0.87736,3976.0,3975.9,20.21991316]
[1734015514599,0.25,3976.9,3976.4,2.26335]
[1734015514925,3.1,3977.0,3976.4,2.26335]
[1734015514926,3.35,3977.0,3976.9,2.26306]
[1734015515137,3.35,3977.0,3976.9,5.17048916]
[1734015516486,4.9,3977.0,3976.9,5.17048916]
[1734015516758,4.9,3977.0,3976.9,2.90742916]
[1734015516926,0.25,3976.8,3976.7,2.26317]
[1734015517123,0.5,3976.8,3976.7,2.26317]
[1734015517714,4.9,3977.0,3976.9,2.26306]
[1734015517918,4.9,3977.0,3976.9,5.17048916]
[1734015519583,4.65,3977.0,3976.9,5.17048916]
[1734015519782,6.2,3977.0,3976.9,12.09558016]
[1734015520098,6.2,3977.0,3976.9,10.67825916]
[1734015520313,6.2,3977.0,3976.9,8.17048916]
[1734015520567,6.2,3977.0,3976.9,10.67786016]
[1734015521495,6.45,3977.0,3976.9,5.90742916]
[1734015521673,6.45,3977.0,3976.9,8.17048916]
[1734015522183,6.2,3977.0,3976.9,8.17048916]
[1734015522335,6.2,3977.0,3976.9,9.80208916]
[1734015522536,6.2,3977.0,3976.9,13.29839616]
[1734015522782,6.2,3977.0,3976.9,9.80208916]
[1734015523069,7.75,3977.0,3976.9,9.80208916]
[1734015523570,7.75,3977.0,3976.9,8.17048916]
[1734015524659,7.75,3977.0,3976.9,8.66423568]
[1734015525890,8.25,3977.0,3976.9,5.17048916]
[1734015526578,9.8,3977.0,3976.9,5.17048916]
[1734015529775,11.35,3977.0,3976.9,5.17048916]
[1734015530461,0.25,3976.7,3976.4,5.90742916]
[1734015530663,0.25,3976.7,3976.6,2.26323]
[1734015530871,0.25,3976.5,3976.4,5.90742916]
[1734015531067,0.5,3976.6,3976.5,2.26329]
[1734015531263,0.5,3976.6,3976.5,4.60331983]
[1734015531782,11.1,3977.0,3976.7,2.26318]
[1734015531968,11.1,3977.0,3976.9,2.26306]
[1734015532176,10.85,3977.0,3976.9,2.26306]
[1734015532487,11.1,3977.0,3976.9,3.80956]
[1734015532704,10.85,3977.0,3976.9,3.80956]
[1734015532901,11.1,3977.0,3976.9,3.80956]
[1734015533103,12.65,3977.0,3976.9,3.80956]
[1734015533250,5.94e-06,3977.0,3976.9,16.320098]
[1734015533451,5.94e-06,3977.0,3976.9,29.643615]
[1734015533694,5.94e-06,3977.0,3976.9,26.392723]
[1734015534005,5.94e-06,3977.0,3976.9,7.32113357]
[1734015534152,5.94e-06,3977.0,3976.9,11.39381957]
[1734015534352,5.94e-06,3977.0,3976.9,5.26306]
[1734015534577,5.94e-06,3977.0,3976.9,2.26306]
[1734015536432,1.55000594,3977.0,3976.9,2.26306]
[1734015538533,1.55000594,3977.0,3976.8,5.26312]
[1734015538534,0.25,3976.9,3976.8,5.26312]
[1734015539154,1.55000594,3977.0,3976.8,3.0]
[1734015539340,1.55000594,3977.0,3976.9,2.26306]
[1734015539779,3.10000594,3977.0,3976.9,2.26306]
[1734015543264,4.65000594,3977.0,3976.9,2.26306]
[1734015543966,5.94e-06,3977.0,3976.9,6.91326]
[1734015544733,5.94e-06,3977.0,3976.9,2.26306]
[1734015544949,5.94e-06,3977.0,3976.9,5.26306]
[1734015545344,5.94e-06,3977.0,3976.9,2.26306]
[1734015546049,5.94e-06,3977.0,3976.9,32.029025]
[1734015546254,5.94e-06,3977.0,3976.9,33.868222]
[1734015546839,3.0879,3979.0,3978.5,2.26215]
[1734015547044,1.55,3979.0,3978.5,2.26215]
[1734015547347,1.55,3979.0,3978.9,2.26193]
[1734015547756,1.55,3979.0,3978.9,4.60195983]
[1734015548086,1.5481,3979.8,3979.6,2.26153]
[1734015548244,1.55,3979.9,3979.6,4.60155983]
[1734015549765,3.38198029,3979.7,3979.6,2.34002983]
[1734015549948,3.38198029,3979.7,3978.6,2.34002983]
[1734015549949,3.38198029,3979.7,3979.2,4.60177983]
[1734015550269,3.38198029,3979.7,3979.3,2.26168]
[1734015550462,3.38198029,3979.7,3979.2,2.34002983]
[1734015550690,3.1,3979.7,3979.6,4.60155983]
[1734015551242,3.1,3979.7,3979.6,5.16649081]
[1734015551962,3.1,3979.7,3979.6,20.90271581]
[1734015552387,1.55,3981.2,3979.7,3.0]
[1734015552587,1.55,3981.2,3980.9,2.26079]
[1734015553275,1.55,3981.2,3980.7,3.0]
[1734015553276,3.10001,3981.0,3980.7,3.0]
[1734015553459,3.10001,3981.0,3980.8,2.26085]
[1734015553663,3.41838126,3981.0,3980.2,2.26118]
[1734015553848,3.41838126,3981.0,3980.1,3.41556962]
[1734015554203,1.6493,3980.9,3980.1,2.90496081]
[1734015554718,2.51205,3980.8,3979.6,2.90496081]
[1734015554869,4.16129,3980.9,3979.6,2.90496081]
[1734015555068,3.42504713,3980.8,3979.6,2.90496081]
[1734015555292,1.6493,3980.7,3979.6,2.90496081]
[1734015555469,3.42504713,3980.8,3980.1,2.90496081]
[1734015555470,0.91296713,3980.8,3980.1,2.90496081]
[1734015555991,0.91296713,3980.8,3980.4,2.00981]
[1734015556191,0.91296713,3980.8,3980.3,2.00989]
[1734015556392,0.43313484,3980.7,3980.3,2.00989]
[1734015556695,0.43313484,3980.7,3980.1,2.90496081]
[1734015556883,1.55,3980.8,3980.7,2.00969]
[1734015558473,1.55,3980.8,3980.7,5.00969]
[1734015559718,1.55,3980.8,3980.7,2.00969]
[1734015559869,3.1,3980.8,3980.7,2.00969]
[1734015560795,3.1,3980.8,3980.6,3.0]
[1734015561007,3.875001,3980.8,3980.1,2.00995]
[1734015561213,3.875001,3980.8,3979.7,2.01019]
[1734015561509,1.5637,3980.7,3979.5,2.0103]
[1734015561995,4.07583,3980.7,3979.5,2.0103]
[1734015562177,0.7950831,3980.6,3979.5,2.0103]
[1734015562511,0.55,3980.4,3978.3,2.90496081]
[1734015562711,0.7950831,3980.6,3978.5,2.01076]
[1734015562712,1.5637,3980.2,3978.5,2.01076]
[1734015562921,1.5637,3979.7,3978.5,0.49320251]
[1734015563235,0.55,3980.5,3978.0,2.01105]
[1734015563236,1.6001,3979.2,3978.0,2.01105]
[1734015563393,1.6001,3979.2,3977.4,1.5906]
[1734015563394,1.6001,3979.1,3977.8,2.01111]
[1734015563577,1.6001,3979.1,3977.4,1.5906]
[1734015563922,1.6001,3979.1,3977.5,2.01131]
[1734015564075,1.6001,3979.1,3977.9,2.01106]
[1734015564274,0.411318,3979.0,3977.9,2.01106]
[1734015564475,0.411318,3979.0,3977.9,0.37139122]
[1734015564698,1.6001,3979.1,3977.9,0.37139122]
[1734015564989,1.6001,3979.1,3978.9,1.75926]
[1734015565410,1.72547,3979.6,3978.9,1.75926]
[1734015565575,1.72547,3979.6,3978.7,1.75936]
[1734015565934,1.5691,3979.4,3978.1,1.75963]
[1734015566274,2.51309,3979.2,3977.8,1.75974]
[1734015566576,1.6352,3978.9,3977.6,1.75981]
[1734015566779,1.6352,3978.9,3978.2,1.75956]
[1734015567029,1.6352,3978.9,3978.2,1.75957]
[1734015567183,0.16352,3978.8,3977.7,1.75981]
[1734015567377,1.6352,3978.9,3977.7,1.75981]
[1734015567709,1.6352,3978.9,3977.5,0.50810598]
[1734015567710,1.6352,3978.9,3978.2,1.75957]
[1734015567921,1.6352,3978.9,3977.8,3.27635203]
[1734015568221,1.55,3979.4,3977.8,3.27635203]
[1734015568222,1.6586,3979.3,3978.9,1.75927]
[1734015568421,1.6586,3979.3,3978.7,1.75936]
[1734015568635,1.97946,3979.3,3978.7,1.75936]
[1734015568974,1.6586,3979.3,3978.7,1.75936]
[1734015569733,1.55,3979.4,3979.2,1.75914]
[1734015570036,3.1,3979.4,3979.3,1.7591]
[1734015570875,1.84353,3979.4,3979.3,16.85709703]
[1734015571082,1e-05,3979.4,3979.3,20.46610503]
[1734015571576,1e-05,3979.4,3979.3,20.68135176]
[1734015571928,1.55,3980.2,3980.1,1.75874]
[1734015573395,3.1,3980.2,3980.1,1.75874]
[1734015574081,3.09697604,3980.2,3980.1,1.75874]
[1734015574618,3.09697604,3980.2,3980.1,10.408144]
[1734015574783,3.09697604,3980.2,3980.1,15.209682]
[1734015575335,3.09697604,3980.2,3980.1,10.570937]
[1734015576132,3.09697604,3980.2,3980.1,1.75874]
[1734015576947,4.64697604,3980.2,3980.1,1.75874]
[1734015578114,4.64697604,3980.2,3979.9,2.26578792]
[1734015578314,4.64697604,3980.2,3980.0,1.75875]
[1734015578642,4.64697604,3980.2,3979.9,0.50695792]
[1734015578780,4.64697604,3980.2,3979.9,1.75883]
[1734015578982,4.64697604,3980.2,3980.1,1.75874]
[1734015580195,6.19697604,3980.2,3980.1,1.75874]
[1734015581718,3.1,3980.8,3980.7,1.75848]
[1734015581903,2.25730234,3980.8,3980.7,4.66344081]
[1734015582107,2.18278455,3980.8,3980.7,7.66344081]
[1734015582816,1.21942775,3981.0,3980.9,4.75839]
[1734015583021,1.21942775,3981.0,3980.9,14.610474]
[1734015583181,1.21942775,3981.0,3980.9,10.798881]
[1734015583381,2.76942775,3981.0,3980.9,10.798881]
[1734015584882,2.76942775,3981.0,3980.9,9.479101]
[1734015585318,2.76942775,3981.0,3980.9,8.93754858]
[1734015585480,2.76942775,3981.0,3980.9,8.70289458]
[1734015585684,2.76942775,3981.0,3980.9,2.24863258]
[1734015586900,4.31942775,3981.0,3980.9,1.75839]
[1734015587099,4.31942775,3981.0,3980.5,2.00979]
[1734015587100,4.31942775,3981.0,3980.5,0.49235093]
[1734015587292,4.31942775,3981.0,3980.2,2.90496081]
[1734015587293,4.31942775,3981.0,3980.6,2.00972]
[1734015587485,4.31942775,3981.0,3980.3,3.0]
[1734015587681,4.31942775,3981.0,3980.9,2.00959]
[1734015588125,4.31942775,3981.0,3980.8,2.00962]
[1734015588283,4.31942775,3981.0,3980.7,2.90496081]
[1734015588922,4.31942775,3981.0,3980.9,2.00959]
[1734015589494,4.31942775,3981.0,3980.9,3.64629]
[1734015590225,5.86942775,3981.0,3980.9,3.64629]
[1734015590590,5.43262775,3981.0,3980.9,3.64629]
[1734015590789,1.584,3982.2,3982.0,1.4820197]
[1734015591025,1.584,3982.2,3982.1,2.00899]
[1734015591428,1.584,3982.2,3982.0,1.4820197]
[1734015591927,2.14811171,3982.2,3982.0,1.4820197]
[1734015592831,1.5858,3982.2,3982.0,1.4820197]
[1734015593592,1.55,3982.2,3982.0,1.4820197]
[1734015594415,1.6341,3982.1,3982.0,1.4820197]
[1734015595333,2.1841,3982.1,3982.0,1.4820197]
[1734015595626,2.1841,3982.1,3979.9,1.6349]
[1734015595627,1.5042,3981.8,3980.2,0.49799111]
[1734015596042,1.5042,3981.8,3980.3,2.51236]
[1734015596599,1.5042,3981.6,3980.1,2.51248]
[1734015596796,1.5042,3981.6,3979.9,2.90496081]
[1734015596797,1.5042,3981.6,3980.3,2.51236]
[1734015597000,1.5042,3981.5,3980.3,2.51236]
[1734015597252,0.30542,3981.4,3980.4,2.5123]
[1734015597621,0.30542,3981.4,3980.2,2.51242]
[1734015597936,0.30542,3981.4,3980.0,0.49465317]
[1734015597937,1.6409,3981.2,3980.0,0.49465317]
[1734015598614,1.5296,3981.1,3980.0,0.49465317]
[1734015599237,1.5847,3981.0,3979.4,2.90496081]
[1734015599416,1.89613,3980.9,3979.2,0.50971111]
[1734015600000,1.89613,3980.9,3979.4,3.0]
[1734015600357,1.6358,3980.5,3978.4,5.41848081]
[1734015600639,1.6358,3980.2,3979.1,2.51312]
[1734015600839,1.6358,3980.2,3978.9,2.90496081]
[1734015601041,1.6358,3980.2,3979.0,0.29049608]
[1734015601227,1.6358,3980.2,3979.9,2.51262]
[1734015601632,1.6358,3980.2,3979.4,2.90496081]
[1734015601950,1.6358,3980.2,3979.1,1.6201]
[1734015602147,1.6358,3980.2,3979.0,3.29049608]
[1734015602320,1.6358,3980.2,3979.1,0.87086569]
[1734015602841,1.6358,3980.2,3979.5,5.51287]
[1734015603007,1.6358,3980.2,3979.5,3.0]
[1734015603613,1.6358,3980.2,3979.9,2.51256]
[1734015603931,3.1858,3980.2,3979.5,3.0]
[1734015604136,3.1858,3980.2,3977.0,4.24785495]
[1734015604137,3.1858,3980.2,3979.0,3.0]
[1734015604343,3.1858,3980.2,3978.6,2.01354077]
[1734015604517,1.6032,3980.1,3978.6,0.51184077]
[1734015604955,1.6032,3980.1,3979.0,2.51319]
[1734015605246,1.6032,3980.1,3978.6,0.51184077]
[1734015605247,1.6032,3980.1,3978.8,2.90496081]
[1734015605807,1.6603,3979.9,3978.6,0.51184077]
[1734015606011,1.6603,3979.7,3978.7,2.51333]
[1734015606353,1.6603,3979.7,3978.3,5.41859081]
[1734015606513,1.6603,3979.7,3978.3,2.90496081]
[1734015607040,1.6603,3979.7,3978.6,2.5134]
[1734015607226,1.6603,3979.7,3978.3,2.90496081]
[1734015607227,3.2103,3979.7,3978.3,2.90496081]
[1734015607425,1.97143,3979.6,3977.8,2.90496081]
[1734015607625,1.5747,3979.5,3977.9,2.51388]
[1734015607824,1.5747,3979.4,3977.8,2.90496081]
[1734015608236,1.5747,3979.4,3978.2,2.51368]
[1734015608549,1.5051,3979.3,3977.9,2.51384]
[1734015608748,1.5051,3979.1,3977.9,3.0]
[1734015608955,1.5051,3979.1,3979.0,2.51319]
[1734015609451,1.5051,3979.1,3978.4,3.0]
[1734015609749,1.5051,3979.1,3978.3,2.90496081]
[1734015609750,1.6073,3979.6,3978.9,3.0]
[1734015609964,1.55,3979.7,3979.5,2.51287]
[1734015610115,1.55,3979.7,3979.6,2.51281]
[1734015610310,1.55,3979.7,3979.6,5.51281]
[1734015610551,1.55,3979.7,3979.5,0.251287]
[1734015610751,1.55,3979.7,3979.5,2.51286]
[1734015610981,1.55,3979.7,3978.9,3.0]
[1734015610982,1.55,3979.6,3978.9,3.0]
[1734015611137,3.0745,3979.6,3979.2,2.51306]
[1734015611449,3.0745,3979.6,3979.3,2.513]
[1734015611871,1.55,3979.6,3979.5,2.51287]
[1734015612074,1.55,3979.6,3979.5,5.764157]
[1734015613139,0.29359,3979.6,3979.5,5.764157]
[1734015613342,1.55,3980.2,3980.1,2.51249]
[1734015613577,1.55,3980.2,3980.1,5.51249]
[1734015613777,1.55,3980.2,3980.1,2.51249]
[1734015613976,1.55,3980.2,3979.7,3.0]
[1734015614377,1.55,3980.2,3980.0,2.26125]
[1734015614893,1.55,3980.2,3980.1,2.26124]
[1734015616792,1.55,3980.2,3979.9,2.26132]
[1734015616995,1.55,3980.2,3979.3,2.26167]
[1734015616996,1.5279,3980.1,3979.3,2.26167]
[1734015617294,1.5279,3980.1,3978.6,1.5682]
[1734015617295,1.5279,3980.1,3978.9,0.50159131]
[1734015617491,1.5279,3980.1,3978.7,3.22199]
[1734015617649,1.705,3980.2,3977.4,0.37043781]
[1734015617650,1.5279,3979.7,3977.6,4.47316081]
[1734015617846,1.5279,3979.5,3978.5,2.26215]
[1734015618049,0.15279,3979.4,3978.6,2.26209]
[1734015618247,0.15279,3979.4,3978.1,2.90496081]
[1734015618248,0.15279,3979.4,3978.7,2.26199]
[1734015618445,1.5279,3979.5,3978.6,2.90496081]
[1734015618877,1.5279,3979.5,3978.8,2.26198]
[1734015619080,1.5279,3979.5,3978.8,5.26198]
[1734015619379,1.5279,3979.5,3978.6,2.90496081]
[1734015619380,1.5279,3979.5,3979.4,2.26164]